fUSD/lending_fUSD_20250809
["ID","MTS","AMOUNT","RATE_DAILY","PERIOD"]
[378114524,1754736663239,-400.0,0.00024657,2]
[378114525,1754736663250,-3452.28,0.00024657,2]
[378114526,1754736663260,-1288.37,0.00024657,2]
[378114527,1754736663278,-400.0,0.00024657,2]
[378114528,1754736663300,-500.0,0.00024657,2]
[378114529,1754736663319,-400.0,0.00024657,2]
[378114530,1754736663329,-400.0,0.00024657,2]
[378114531,1754736663340,-400.0,0.00024657,2]
[378114532,1754736663350,-400.0,0.00024657,2]
[378114533,1754736663360,-400.0,0.00024657,2]
[378114534,1754736663370,-400.0,0.00024657,2]
[378114535,1754736663381,-400.0,0.00024657,2]
[378114536,1754736663391,-511.79536538,0.00024657,2]
[378114537,1754736663400,-400.0,0.00024657,2]
[378114538,1754736663411,-413.23,0.00024657,2]
[378114539,1754736663421,-400.0,0.00024657,2]
[378114540,1754736663430,-465.05,0.00024657,2]
[378114541,1754736663440,-400.0,0.00024657,2]
[378114542,1754736663449,-400.0,0.00024657,2]
[378114543,1754736663459,-400.0,0.00024657,2]
[378114544,1754736663469,-400.0,0.00024657,2]
[378114545,1754736663479,-489.7,0.00024657,2]
[378114546,1754736663491,-400.0,0.00024657,2]
[378114547,1754736663501,-400.0,0.00024657,2]
[378114548,1754736663511,-253.359595,0.00024657,7]
[378114549,1754736663720,-400.0,0.00024657,2]
[378114550,1754736663736,-400.0,0.00024657,2]
[378114551,1754736663748,-400.0,0.00024657,2]
[378114552,1754736663767,-424.2,0.00024657,2]
[378114553,1754736663777,-400.0,0.00024657,2]
[378114554,1754736663787,-400.0,0.00024657,2]
[378114555,1754736663797,-400.0,0.00024657,2]
[378114556,1754736663807,-400.0,0.00024657,2]
[378114557,1754736663818,-505.97,0.00024657,2]
[378114558,1754736663828,-400.0,0.00024657,2]
[378114559,1754736663838,-400.0,0.00024657,2]
[378114560,1754736663849,-400.0,0.00024657,2]
[378114561,1754736663859,-400.0,0.00024657,2]
[378114562,1754736663870,-400.0,0.00024657,2]
[378114563,1754736663879,-568.99,0.00024657,2]
[378114564,1754736663889,-151.682962,0.00024657,7]
[378114565,1754736663899,-400.0,0.00024657,2]
[378114566,1754736663909,-400.0,0.00024657,2]
[378114567,1754736663919,-400.0,0.00024657,2]
[378114568,1754736663928,-512.64,0.00024657,2]
[378114569,1754736663939,-996.92,0.00024657,2]
[378114570,1754736663948,-253.359595,0.00024657,7]
[378114571,1754736663958,-400.0,0.00024657,2]
[378114572,1754736663968,-447.55,0.00024657,2]
[378114573,1754736663978,-400.0,0.00024657,2]
[378114574,1754736663988,-766.26,0.00024657,2]
[378114575,1754736663998,-400.0,0.00024657,2]
[378114576,1754736664008,-400.0,0.00024657,2]
[378114577,1754736664018,-400.0,0.00024657,2]
[378114578,1754736664027,-391.47129306,0.00024657,2]
[378114579,1754736664037,-400.0,0.00024657,2]
[378114580,1754736664047,-400.0,0.00024657,2]
[378114581,1754736664056,-400.0,0.00024657,2]
[378114582,1754736664067,-400.0,0.00024657,2]
[378114583,1754736664077,-151.0,0.00024657,7]
[378114584,1754736664087,-400.0,0.00024657,2]
[378114585,1754736664097,-400.0,0.00024657,2]
[378114586,1754736664107,-798.9,0.00024657,2]
[378114587,1754736664117,-400.0,0.00024657,2]
[378114588,1754736664127,-400.0,0.00024657,2]
[378114589,1754736664137,-400.94368303,0.00024657,2]
[378114590,1754736664146,-400.0,0.00024657,2]
[378114591,1754736664156,-618.61,0.00024657,2]
[378114592,1754736664166,-553.47,0.00024657,2]
[378114593,1754736664177,-400.0,0.00024657,2]
[378114594,1754736664187,-400.0,0.00024657,2]
[378114595,1754736664196,-400.0,0.00024657,2]
[378114596,1754736664206,-400.0,0.00024657,2]
[378114597,1754736664216,-500.0,0.00024657,2]
[378114598,1754736664226,-458.69,0.00024657,2]
[378114599,1754736664240,-500.0,0.00024657,2]
[378114600,1754736664250,-400.0,0.00024657,2]
[378114601,1754736664260,-500.0,0.00024657,2]
[378114602,1754736664269,-400.0,0.00024657,2]
[378114603,1754736664282,-500.0,0.00024657,2]
[378114604,1754736664292,-500.0,0.00024657,2]
[378114605,1754736664302,-500.0,0.00024657,2]
[378114606,1754736664313,-500.0,0.00024657,2]
[378114607,1754736664323,-400.0,0.00024657,2]
[378114608,1754736664333,-400.0,0.00024657,2]
[378114609,1754736664342,-500.0,0.00024657,2]
[378114610,1754736664353,-500.0,0.00024657,2]
[378114611,1754736664363,-400.0,0.00024657,2]
[378114612,1754736664373,-500.0,0.00024657,2]
[378114613,1754736664382,-1009.6,0.00024657,2]
[378114614,1754736664391,-400.0,0.00024657,2]
[378114615,1754736664401,-400.0,0.00024657,2]
[378114616,1754736664410,-593.04,0.00024657,2]
[378114617,1754736664420,-400.0,0.00024657,2]
[378114618,1754736664430,-400.0,0.00024657,2]
[378114619,1754736664439,-400.0,0.00024657,2]
[378114620,1754736664450,-915.49,0.00024657,2]
[378114621,1754736664461,-400.0,0.00024657,2]
[378114622,1754736664470,-403.38878789,0.00024657,2]
[378114623,1754736664480,-400.0,0.00024657,2]
[378114624,1754736664489,-400.0,0.00024657,2]
[378114625,1754736664498,-400.0,0.00024657,2]
[378114626,1754736664507,-400.0,0.00024657,2]
[378114627,1754736664517,-518.44,0.00024657,2]
[378114628,1754736664526,-400.0,0.00024657,2]
[378114629,1754736664536,-400.0,0.00024657,2]
[378114630,1754736664545,-597.2,0.00024657,2]
[378114631,1754736664555,-400.0,0.00024657,2]
[378114632,1754736664564,-4034.68,0.00024657,2]
[378114633,1754736664575,-400.0,0.00024657,2]
[378114634,1754736664584,-400.0,0.00024657,2]
[378114635,1754736664593,-500.0,0.00024657,2]
[378114636,1754736664603,-510.20582349,0.00024657,2]
[378114637,1754736664612,-400.0,0.00024657,2]
[378114638,1754736664621,-400.0,0.00024657,2]
[378114639,1754736664630,-1475.45,0.00024657,2]
[378114640,1754736664639,-400.0,0.00024657,2]
[378114641,1754736664648,-404.19515655,0.00024657,2]
[378114642,1754736664657,-400.0,0.00024657,2]
[378114643,1754736664667,-400.0,0.00024657,2]
[378114644,1754736664676,-151.0,0.00024657,7]
[378114645,1754736664685,-400.0,0.00024657,2]
[378114646,1754736664695,-400.0,0.00024657,2]
[378114647,1754736664704,-400.0,0.00024657,2]
[378114648,1754736664713,-400.0,0.00024657,2]
[378114649,1754736664722,-400.0,0.00024657,2]
[378114650,1754736664731,-465.47,0.00024657,2]
[378114651,1754736664741,-400.0,0.00024657,2]
[378114652,1754736664750,-400.0,0.00024657,2]
[378114653,1754736664759,-400.0,0.00024657,2]
[378114654,1754736664769,-400.0,0.00024657,2]
[378114655,1754736664779,-1241.84,0.00024657,2]
[378114656,1754736664788,-400.0,0.00024657,2]
[378114657,1754736664797,-400.0,0.00024657,2]
[378114658,1754736664806,-400.0,0.00024657,2]
[378114659,1754736664816,-196.69174993,0.00024657,2]
[378114660,1754736664826,-711.82,0.00024657,2]
[378114661,1754736664836,-400.0,0.00024657,2]
[378114662,1754736664847,-400.0,0.00024657,2]
[378114663,1754736664856,-400.0,0.00024657,2]
[378114664,1754736664865,-400.0,0.00024657,2]
[378114665,1754736664876,-400.0,0.00024657,2]
[378114666,1754736664886,-405.52157783,0.00024657,2]
[378114667,1754736664895,-400.0,0.00024657,2]
[378114668,1754736664904,-400.0,0.00024657,2]
[378114669,1754736664914,-400.0,0.00024657,2]
[378114670,1754736664923,-400.0,0.00024657,2]
[378114671,1754736664932,-400.0,0.00024657,2]
[378114672,1754736664941,-400.0,0.00024657,2]
[378114673,1754736664950,-400.0,0.00024657,2]
[378114674,1754736664959,-1000.0,0.00024657,2]
[378114675,1754736664969,-429.27,0.00024657,2]
[378114676,1754736664978,-400.0,0.00024657,2]
[378114677,1754736664987,-400.0,0.00024657,2]
[378114678,1754736664997,-400.0,0.00024657,2]
[378114679,1754736665007,-1699.57,0.00024657,2]
[378114680,1754736665017,-555.02,0.00024657,2]
[378114681,1754736665027,-400.0,0.00024657,2]
[378114682,1754736665036,-400.0,0.00024657,2]
[378114683,1754736665046,-400.0,0.00024657,2]
[378114684,1754736665055,-400.0,0.00024657,2]
[378114685,1754736665065,-745.96,0.00024657,2]
[378114686,1754736665075,-300.0,0.00024657,2]
[378114687,1754736665085,-571.72,0.00024657,2]
[378114688,1754736665095,-400.0,0.00024657,2]
[378114689,1754736665104,-400.0,0.00024657,2]
[378114690,1754736665113,-607.24,0.00024657,2]
[378114691,1754736665123,-400.0,0.00024657,2]
[378114692,1754736665132,-400.0,0.00024657,2]
[378114693,1754736665142,-400.0,0.00024657,2]
[378114694,1754736665153,-400.0,0.00024657,2]
[378114695,1754736665162,-400.0,0.00024657,2]
[378114696,1754736665172,-400.0,0.00024657,2]
[378114697,1754736665182,-400.0,0.00024657,2]
[378114698,1754736665191,-500.0,0.00024657,2]
[378114699,1754736665202,-500.0,0.00024657,2]
[378114700,1754736665212,-589.07,0.00024657,2]
[378114701,1754736665221,-500.0,0.00024657,2]
[378114702,1754736665231,-500.0,0.00024657,2]
[378114703,1754736665244,-500.0,0.00024657,2]
[378114704,1754736665254,-400.0,0.00024657,2]
[378114705,1754736665264,-494.68,0.00024657,2]
[378114706,1754736665273,-500.0,0.00024657,2]
[378114707,1754736665284,-400.0,0.00024657,2]
[378114708,1754736665293,-500.0,0.00024657,2]
[378114709,1754736665304,-400.0,0.00024657,2]
[378114710,1754736665315,-400.0,0.00024657,2]
[378114711,1754736665326,-500.0,0.00024657,2]
[378114712,1754736665336,-500.0,0.00024657,2]
[378114713,1754736665346,-525.66876396,0.00024657,2]
[378114714,1754736665355,-400.0,0.00024657,2]
[378114715,1754736665364,-946.1882,0.00024657,7]
[378114716,1754736665374,-400.0,0.00024657,2]
[378114717,1754736665383,-400.0,0.00024657,2]
[378114718,1754736665392,-400.0,0.00024657,2]
[378114719,1754736665402,-739.24,0.00024657,2]
[378114720,1754736665412,-739.24,0.00024657,2]
[378114721,1754736665421,-400.0,0.00024657,2]
[378114722,1754736665431,-739.24,0.00024657,2]
[378114723,1754736665440,-400.0,0.00024657,2]
[378114724,1754736665451,-739.24,0.00024657,2]
[378114725,1754736665460,-400.0,0.00024657,2]
[378114726,1754736665470,-739.24,0.00024657,2]
[378114727,1754736665479,-400.0,0.00024657,2]
[378114728,1754736665489,-913.95,0.00024657,2]
[378114729,1754736665498,-739.24,0.00024657,2]
[378114730,1754736665508,-739.24,0.00024657,2]
[378114731,1754736665518,-739.24,0.00024657,2]
[378114732,1754736665527,-739.24,0.00024657,2]
[378114733,1754736665537,-400.0,0.00024657,2]
[378114734,1754736665547,-739.24,0.00024657,2]
[378114735,1754736665556,-946.1882,0.00024657,7]
[378114736,1754736665566,-739.24,0.00024657,2]
[378114737,1754736665575,-676.28,0.00024657,2]
[378114738,1754736665585,-400.0,0.00024657,2]
[378114739,1754736665595,-401.68890946,0.00024657,2]
[378114740,1754736665605,-734.56,0.00024657,2]
[378114741,1754736665614,-718.44,0.00024657,2]
[378114742,1754736665624,-924.28,0.00024657,2]
[378114743,1754736665634,-1676.89,0.00024657,2]
[378114744,1754736665644,-400.0,0.00024657,2]
[378114745,1754736665653,-400.0,0.00024657,2]
[378114746,1754736665663,-400.0,0.00024657,2]
[378114747,1754736665672,-1331.01,0.00024657,2]
[378114748,1754736665682,-400.0,0.00024657,2]
[378114749,1754736665692,-400.0,0.00024657,2]
[378114750,1754736665702,-400.0,0.00024657,2]
[378114751,1754736665711,-400.0,0.00024657,2]
[378114752,1754736665720,-151.0,0.00024657,7]
[378114753,1754736665730,-545.21,0.00024657,2]
[378114754,1754736665740,-400.0,0.00024657,2]
[378114755,1754736665749,-400.0,0.00024657,2]
[378114756,1754736665758,-400.0,0.00024657,2]
[378114757,1754736665768,-400.0,0.00024657,2]
[378114758,1754736665777,-400.0,0.00024657,2]
[378114759,1754736665787,-898.03,0.00024657,2]
[378114760,1754736665798,-400.0,0.00024657,2]
[378114761,1754736665808,-400.0,0.00024657,2]
[378114762,1754736665818,-400.0,0.00024657,2]
[378114763,1754736665827,-400.0,0.00024657,2]
[378114764,1754736665836,-400.0,0.00024657,2]
[378114765,1754736665846,-585.71,0.00024657,2]
[378114766,1754736665856,-400.0,0.00024657,2]
[378114767,1754736665865,-400.0,0.00024657,2]
[378114768,1754736665874,-1000.0,0.00024657,2]
[378114769,1754736665883,-400.0,0.00024657,2]
[378114770,1754736665892,-400.0,0.00024657,2]
[378114771,1754736665901,-400.0,0.00024657,2]
[378114772,1754736665910,-1286.45,0.00024657,2]
[378114773,1754736665919,-400.0,0.00024657,2]
[378114774,1754736665929,-593.33,0.00024657,2]
[378114775,1754736665938,-400.0,0.00024657,2]
[378114776,1754736665947,-710.53,0.00024657,2]
[378114777,1754736665956,-479.16,0.00024657,2]
[378114778,1754736665965,-400.0,0.00024657,2]
[378114779,1754736665975,-400.0,0.00024657,2]
[378114780,1754736665984,-400.0,0.00024657,2]
[378114781,1754736665993,-218.08754016,0.00024658,30]
[378114782,1754736666003,-1000.0,0.00024658,2]
[378114783,1754736666015,-151.0,0.00024658,7]
[378114784,1754736666025,-151.0,0.00024658,7]
[378114785,1754736666035,-151.0,0.00024658,7]
[378114786,1754736666043,-500.0,0.00024658,2]
[378114787,1754736666053,-1829.52,0.00024658,2]
[378114788,1754736666063,-500.0,0.00024658,2]
[378114789,1754736666073,-1086.0,0.00024658,2]
[378114790,1754736666082,-151.0,0.0002466,7]
[378114791,1754736666091,-151.0,0.0002466,7]
[378114792,1754736666100,-151.0,0.0002466,7]
[378114793,1754736666110,-163.082897,0.0002466,7]
[378114794,1754736666119,-163.082897,0.0002466,7]
[378114795,1754736666129,-151.0,0.0002466,7]
[378114796,1754736666139,-151.0,0.0002466,7]
[378114797,1754736666149,-151.0,0.0002466,7]
[378114798,1754736666159,-187.6556303,0.00024668,2]
[378114799,1754736666168,-504.76392915,0.00024673,2]
[378114800,1754736666177,-289.593652,0.00024673,2]
[378114801,1754736666187,-159.775808,0.00024673,2]
[378114802,1754736666197,-159.775808,0.00024673,2]
[378114803,1754736666207,-159.775808,0.00024673,2]
[378114804,1754736666216,-500.0,0.00024673,2]
[378114805,1754736666225,-500.0,0.00024673,2]
[378114806,1754736666238,-500.0,0.00024673,2]
[378114807,1754736666248,-501.30107646,0.00024673,2]
[378114808,1754736666257,-500.0,0.00024673,2]
[378114809,1754736666266,-508.98904486,0.00024673,2]
[378114810,1754736666277,-150.0,0.00024675,2]
[378114811,1754736666290,-151.0,0.00024676,7]
[378114812,1754736666300,-179.17607,0.00024676,7]
[378114813,1754736666315,-151.0,0.00024676,7]
[378114814,1754736666333,-188.749394,0.00024676,7]
[378114815,1754736666351,-188.749394,0.00024676,7]
[378114816,1754736666363,-902.2735,0.00024676,2]
[378114817,1754736666371,-1000.0,0.00024676,2]
[378114818,1754736666381,-1000.0,0.00024676,2]
[378114819,1754736666391,-1000.0,0.00024676,2]
[378114820,1754736666400,-1000.0,0.00024676,2]
[378114821,1754736666410,-1000.0,0.00024676,2]
[378114822,1754736666420,-1000.0,0.00024676,2]
[378114823,1754736666429,-1000.0,0.00024676,2]
[378114824,1754736666439,-1000.0,0.00024676,2]
[378114825,1754736666451,-1000.0,0.00024676,2]
[378114826,1754736666461,-1000.0,0.00024676,2]
[378114827,1754736666476,-1000.0,0.00024676,2]
[378114828,1754736666485,-1000.0,0.00024676,2]
[378114829,1754736666495,-1000.0,0.00024676,2]
[378114830,1754736666504,-1000.0,0.00024676,2]
[378114831,1754736666514,-1000.0,0.00024676,2]
[378114832,1754736666525,-1000.0,0.00024676,2]
[378114833,1754736666535,-1000.0,0.00024676,2]
[378114834,1754736666545,-1000.0,0.00024676,2]
[378114835,1754736666555,-1000.0,0.00024676,2]
[378114836,1754736666567,-1000.0,0.00024676,2]
[378114837,1754736666578,-1000.0,0.00024676,2]
[378114838,1754736666587,-1000.0,0.00024676,2]
[378114839,1754736666596,-1000.0,0.00024676,2]
[378114840,1754736666606,-1000.0,0.00024676,2]
[378114841,1754736666615,-380.1835,0.00024676,2]
[378114842,1754736666624,-150.0,0.00024684,2]
[378114843,1754736666634,-4243.65,0.00024685,30]
[378114844,1754736666643,-150.0,0.00024688,2]
[378114845,1754736666652,-2324.4341768,0.00024691,2]
[378114846,1754736666661,-248.11802789,0.00024692,2]
[378114847,1754736666674,-150.0,0.00024693,2]
[378114848,1754736666683,-150.0,0.00024693,2]
[378114849,1754736666692,-357.04698486,0.000247,2]
[378114850,1754736666701,-842.55686218,0.000247,7]
[378114851,1754736666710,-1500.0,0.000247,9]
[378114852,1754736666719,-150.0,0.0002471,2]
[378114853,1754736666728,-1086.0,0.00024711,2]
[378114854,1754736666737,-2324.43417676,0.00024713,2]
[378114855,1754736666746,-150.0,0.00024719,2]
[378114856,1754736666755,-150.0,0.00024721,2]
[378114857,1754736666764,-150.0,0.00024724,2]
[378114858,1754736666774,-150.0,0.00024726,2]
[378114859,1754736666783,-300.0,0.00024728,2]
[378114860,1754736666793,-150.0,0.00024734,2]
[378114861,1754736666804,-2324.43417676,0.00024735,2]
[378114862,1754736666815,-1086.0,0.00024745,2]
[378114863,1754736666824,-600.0,0.00024751,2]
[378114864,1754736666834,-600.0,0.00024751,2]
[378114865,1754736666848,-600.0,0.00024751,2]
[378114866,1754736666857,-600.0,0.00024751,2]
[378114867,1754736666867,-600.0,0.00024751,2]
[378114868,1754736666876,-496.25,0.00024751,2]
[378114869,1754736666888,-150.0,0.00024755,2]
[378114870,1754736666900,-2324.43417676,0.00024756,2]
[378114871,1754736666909,-150.0,0.00024757,2]
[378114872,1754736666918,-218.08754016,0.00024767,30]
[378114873,1754736666928,-5000.0,0.00024768,2]
[378114874,1754736666937,-5851.8982478,0.00024774,2]
[378114875,1754736666946,-150.0,0.00024778,2]
[378114876,1754736666956,-151.0,0.0002478,7]
[378114877,1754736666965,-150.0,0.0002478,2]
[378114878,1754736666978,-5000.27083854,0.00024788,2]
[378114879,1754736666988,-541.76630497,0.0002479,2]
[378114880,1754736666997,-500.0,0.0002479,2]
[378114881,1754736667007,-1829.52,0.0002479,2]
[378114882,1754736667016,-500.0,0.0002479,2]
[378114883,1754736667247,-500.0,0.0002479,2]
[378114884,1754736667259,-152.04468906,0.0002479,2]
[378114885,1754736667269,-739.24,0.0002479,2]
[378114886,1754736667279,-151.0,0.00024791,7]
[378114887,1754736667288,-151.0,0.00024791,7]
[378114888,1754736667298,-151.0,0.00024791,7]
[378114889,1754736667308,-151.0,0.00024791,7]
[378114890,1754736667319,-151.0,0.00024791,7]
[378114891,1754736667328,-151.0,0.00024791,7]
[378114892,1754736667338,-151.0,0.00024791,7]
[378114893,1754736667347,-151.958124,0.00024791,7]
[378114894,1754736667357,-151.0,0.00024791,7]
[378114895,1754736667366,-151.0,0.00024791,7]
[378114896,1754736667375,-151.0,0.00024791,7]
[378114897,1754736667384,-151.0,0.00024791,7]
[378114898,1754736667394,-151.0,0.00024791,7]
[378114899,1754736667403,-151.0,0.00024791,7]
[378114900,1754736667412,-151.0,0.00024791,7]
[378114901,1754736667421,-151.0,0.00024791,7]
[378114902,1754736667430,-187.3520408,0.00024791,7]
[378114903,1754736667439,-151.0,0.00024791,7]
[378114904,1754736667448,-151.0,0.00024791,7]
[378114905,1754736667457,-154.909542,0.00024791,7]
[378114906,1754736667466,-151.0,0.00024791,7]
[378114907,1754736667475,-151.0,0.00024791,7]
[378114908,1754736667484,-151.0,0.00024791,7]
[378114909,1754736667493,-151.0,0.00024791,7]
[378114910,1754736667503,-151.0,0.00024791,7]
[378114911,1754736667511,-151.0,0.00024791,7]
[378114912,1754736667520,-207.903642,0.00024791,7]
[378114913,1754736667530,-151.0,0.00024791,7]
[378114914,1754736667539,-151.803557,0.00024791,7]
[378114915,1754736667548,-151.0,0.00024791,7]
[378114916,1754736667557,-151.0,0.00024791,7]
[378114917,1754736667566,-195.703726,0.00024791,7]
[378114918,1754736667575,-206.347482,0.00024791,7]
[378114919,1754736667584,-151.0,0.00024791,7]
[378114920,1754736667593,-151.0,0.00024791,7]
[378114921,1754736667602,-151.0,0.00024791,7]
[378114922,1754736667611,-151.0,0.00024791,7]
[378114923,1754736667620,-151.0,0.00024791,7]
[378114924,1754736667629,-151.0,0.00024791,7]
[378114925,1754736667639,-151.0,0.00024791,7]
[378114926,1754736667649,-151.0,0.00024791,7]
[378114927,1754736667659,-151.0,0.00024791,7]
[378114928,1754736667669,-151.0,0.00024791,7]
[378114929,1754736667678,-151.0,0.00024791,7]
[378114930,1754736667687,-151.376946,0.00024791,7]
[378114931,1754736667697,-182.350129,0.00024791,7]
[378114932,1754736667706,-151.0,0.00024791,7]
[378114933,1754736667715,-182.350129,0.00024791,7]
[378114934,1754736667724,-151.0,0.00024791,7]
[378114935,1754736667734,-259.916548,0.00024791,7]
[378114936,1754736667743,-151.0,0.00024791,7]
[378114937,1754736667752,-151.0,0.00024791,7]
[378114938,1754736667761,-186.920162,0.00024791,7]
[378114939,1754736667771,-151.0,0.00024791,7]
[378114940,1754736667780,-151.0,0.00024791,7]
[378114941,1754736667789,-151.0,0.00024791,7]
[378114942,1754736667798,-151.0,0.00024791,7]
[378114943,1754736667808,-151.0,0.00024791,7]
[378114944,1754736667818,-151.0,0.00024791,7]
[378114945,1754736667828,-151.0,0.00024791,7]
[378114946,1754736667837,-151.0,0.00024791,7]
[378114947,1754736667847,-151.0,0.00024791,7]
[378114948,1754736667856,-151.0,0.00024791,7]
[378114949,1754736667866,-151.0,0.00024791,7]
[378114950,1754736667875,-151.0,0.00024791,7]
[378114951,1754736667885,-188.749394,0.00024791,7]
[378114952,1754736667894,-188.749394,0.00024791,7]
[378114953,1754736667904,-151.0,0.00024791,7]
[378114954,1754736667913,-151.0,0.00024791,7]
[378114955,1754736667923,-151.0,0.00024791,7]
[378114956,1754736667932,-151.0,0.00024791,7]
[378114957,1754736667942,-151.0,0.00024791,7]
[378114958,1754736667952,-151.0,0.00024791,7]
[378114959,1754736667961,-151.0,0.00024791,7]
[378114960,1754736667970,-151.0,0.00024791,7]
[378114961,1754736667979,-151.0,0.00024791,7]
[378114962,1754736667988,-274.226386,0.00024791,7]
[378114963,1754736667997,-679.099048,0.00024791,7]
[378114964,1754736668009,-478.362069,0.00024791,7]
[378114965,1754736668019,-151.0,0.00024791,7]
[378114966,1754736668028,-158.923033,0.00024791,7]
[378114967,1754736668038,-478.362069,0.00024791,7]
[378114968,1754736668047,-679.099048,0.00024791,7]
[378114969,1754736668056,-163.082897,0.00024791,7]
[378114970,1754736668066,-163.082897,0.00024791,7]
[378114971,1754736668076,-151.0,0.00024791,7]
[378114972,1754736668086,-151.0,0.00024791,7]
[378114973,1754736668095,-97899.92201889,0.00024791,2]
[378114978,1754736858693,393.77,0.00017375,2]
[378114981,1754737004644,250.0,0.00015,2]
[378114982,1754737005820,300.0,0.00017,2]
[378114996,1754737359056,177.15,0.00017775,2]
[378115000,1754737370051,234.18,0.00013699,2]
[378115005,1754737511505,150.0,0.00017162,2]
[378115042,1754737832014,-150.0,0.00018115,2]
[378115043,1754737832025,-292.4536798,0.0001841,2]
[378115044,1754737832034,-500.0,0.0001851,4]
[378115045,1754737832044,-3695.92696406,0.00018778,2]
[378115046,1754737832055,-4659.65514676,0.00018778,2]
[378115047,1754737832065,-173.42252474,0.00018833,4]
[378115048,1754737832076,-326.57747526,0.00018833,4]
[378115049,1754737832086,-600.0,0.00019004,2]
[378115050,1754737832095,-3780.78651813,0.00019005,2]
[378115052,1754737832105,-520.49940357,0.00019005,2]
[378115054,1754737832115,-534.31709923,0.00019005,2]
[378115055,1754737832124,-178.06922622,0.00019005,2]
[378115057,1754737832133,-152.04468906,0.00019068,2]
[378115059,1754737832142,-151.52,0.00019068,2]
[378115061,1754737832151,-151.52,0.00019068,2]
[378115063,1754737832161,-151.52,0.00019068,2]
[378115065,1754737832171,-151.52,0.00019068,2]
[378115068,1754737832181,-151.52,0.00019068,2]
[378115070,1754737832190,-151.52,0.00019068,2]
[378115071,1754737832200,-151.52,0.00019068,2]
[378115072,1754737832210,-151.52,0.00019068,2]
[378115073,1754737832219,-151.52,0.00019068,2]
[378115074,1754737832228,-151.52,0.00019068,2]
[378115075,1754737832238,-151.52,0.00019068,2]
[378115076,1754737832247,-151.52,0.00019068,2]
[378115078,1754737832256,-151.52,0.00019068,2]
[378115080,1754737832265,-151.52,0.00019068,2]
[378115083,1754737832276,-151.52,0.00019068,2]
[378115085,1754737832285,-151.52,0.00019068,2]
[378115087,1754737832294,-151.52,0.00019068,2]
[378115089,1754737832304,-695.21,0.00019068,2]
[378115090,1754737832313,-695.21,0.00019068,2]
[378115091,1754737832323,-150.0,0.00019068,2]
[378115092,1754737832332,-500.0,0.00019073,2]
[378115094,1754737832341,-161.76832841,0.00019073,2]
[378115096,1754737832351,-585.08831709,0.00019073,2]
[378115099,1754737832360,-500.0,0.00019073,2]
[378115102,1754737832369,-500.0,0.00019073,2]
[378115104,1754737832379,-504.98432434,0.00019073,2]
[378115107,1754737832389,-500.0,0.00019073,2]
[378115109,1754737832399,-502.64821318,0.00019073,2]
[378115111,1754737832408,-429.97770965,0.00019073,2]
[378115113,1754737832418,-500.0,0.00019073,2]
[378115115,1754737832427,-500.0,0.00019073,2]